[Event "Titled Tuesday Blitz April 26 Early 2022"]
[White "Donchenko, Alexander"]
[Black "Odegov, Artem"]
[WhiteFideId "24603295"]
[BlackFideId "34183644"]
[WhiteElo "2539"]
[BlackElo "2286"]
[Result "1-0"]
[Round "01"]
[TimeControl "180+1"]
[Date "2022.04.26"]
[WhiteClock "0:01:34"]
[BlackClock "0:00:01"]

1. d4 {[%clk 0:03:00]}  Nf6 {[%clk 0:02:59]} 2. Nf3 {[%clk 0:02:59]}  c5 {[%clk 0:02:59]} 3. d5 {[%clk 0:02:59]}  e6 {[%clk 0:02:59]} 4. c4 {[%clk 0:02:58]}  exd5 {[%clk 0:02:59]} 5. cxd5 {[%clk 0:02:59]}  g6 {[%clk 0:03:00]} 6. Nc3 {[%clk 0:02:59]}  Bg7 {[%clk 0:03:01]} 7. Bf4 {[%clk 0:02:59]}  d6 {[%clk 0:02:59]} 8. h3 {[%clk 0:02:58]}  O-O {[%clk 0:03:00]} 9. e3 {[%clk 0:02:58]}  Bf5 {[%clk 0:02:59]} 10. Nd2 {[%clk 0:02:54]}  a6 {[%clk 0:02:58]} 11. a4 {[%clk 0:02:53]}  Qe7 {[%clk 0:02:56]} 12. Be2 {[%clk 0:02:52]}  Nbd7 {[%clk 0:02:51]} 13. g4 {[%clk 0:02:39]}  Be4 {[%clk 0:02:51]} 14. f3 {[%clk 0:02:40]}  Bxd5 {[%clk 0:02:40]} 15. g5 {[%clk 0:02:39]}  Bc6 {[%clk 0:02:38]} 16. gxf6 {[%clk 0:02:39]}  Nxf6 {[%clk 0:02:19]} 17. Nc4 {[%clk 0:02:36]}  Nh5 {[%clk 0:02:00]} 18. Bxd6 {[%clk 0:02:30]}  Qh4+ {[%clk 0:01:59]} 19. Kd2 {[%clk 0:02:30]}  Rfd8 {[%clk 0:01:53]} 20. Kc2 {[%clk 0:02:28]}  Bf8 {[%clk 0:00:56]} 21. Qd2 {[%clk 0:02:12]}  b5 {[%clk 0:00:33]} 22. axb5 {[%clk 0:02:12]}  axb5 {[%clk 0:00:33]} 23. Rxa8 {[%clk 0:02:12]}  Rxa8 {[%clk 0:00:28]} 24. Bxf8 {[%clk 0:02:12]}  Rxf8 {[%clk 0:00:17]} 25. Ne5 {[%clk 0:02:11]}  Bb7 {[%clk 0:00:08]} 26. Bxb5 {[%clk 0:02:09]}  Rd8 {[%clk 0:00:07]} 27. Qe1 {[%clk 0:01:51]}  Qb4 {[%clk 0:00:05]} 28. Nc6 {[%clk 0:01:46]}  Bxc6 {[%clk 0:00:02]} 29. Bxc6 {[%clk 0:01:47]}  Rb8 {[%clk 0:00:03]} 30. Qa1 {[%clk 0:01:42]}  Qb3+ {[%clk 0:00:03]} 31. Kc1 {[%clk 0:01:42]}  Ng3 {[%clk 0:00:02]} 32. Rd1 {[%clk 0:01:41]}  Rc8 {[%clk 0:00:01]} 33. Bd5 {[%clk 0:01:41]}  Qb4 {[%clk 0:00:01]} 34. Qa7 {[%clk 0:01:39]}  Nf5 {[%clk 0:00:01]} 35. Qxf7+ {[%clk 0:01:38]}  Kh8 {[%clk 0:00:02]} 36. Qf6+ {[%clk 0:01:39]}  Ng7 {[%clk 0:00:03]} 37. Be6 {[%clk 0:01:35]}  Re8 {[%clk 0:00:02]} 38. Rd8 {[%clk 0:01:34]}  Qa4 {[%clk 0:00:01]} 1-0


[Site "https://www.chess.com"]

[Event "Titled Tuesday Blitz April 26 Early 2022"]
[White "Dudzinski, Pawel"]
[Black "Piesik, Piotr"]
[WhiteFideId "1117890"]
[BlackFideId "1136194"]
[WhiteElo "2033"]
[BlackElo "2190"]
[Result "1-0"]
[Round "01"]
[TimeControl "180+1"]
[Date "2022.04.26"]
[WhiteClock "0:00:05"]
[BlackClock "0:00:03"]

1. e4 {[%clk 0:02:58]}  g6 {[%clk 0:02:58]} 2. Nc3 {[%clk 0:02:54]}  Bg7 {[%clk 0:02:58]} 3. g3 {[%clk 0:02:54]}  c5 {[%clk 0:02:57]} 4. Bg2 {[%clk 0:02:54]}  Nc6 {[%clk 0:02:57]} 5. d3 {[%clk 0:02:55]}  e6 {[%clk 0:02:57]} 6. Be3 {[%clk 0:02:55]}  d6 {[%clk 0:02:55]} 7. Qd2 {[%clk 0:02:56]}  Nge7 {[%clk 0:02:52]} 8. Bh6 {[%clk 0:02:55]}  O-O {[%clk 0:02:52]} 9. h4 {[%clk 0:02:53]}  Bxh6 {[%clk 0:02:42]} 10. Qxh6 {[%clk 0:02:53]}  f6 {[%clk 0:02:43]} 11. Qd2 {[%clk 0:02:52]}  Nd4 {[%clk 0:02:40]} 12. h5 {[%clk 0:02:44]}  g5 {[%clk 0:02:40]} 13. f4 {[%clk 0:02:26]}  h6 {[%clk 0:02:37]} 14. Nd1 {[%clk 0:02:12]}  d5 {[%clk 0:02:24]} 15. c3 {[%clk 0:02:07]}  Ndc6 {[%clk 0:02:24]} 16. exd5 {[%clk 0:01:59]}  exd5 {[%clk 0:02:25]} 17. Nf2 {[%clk 0:01:46]}  Nf5 {[%clk 0:02:15]} 18. Ne2 {[%clk 0:01:38]}  Re8 {[%clk 0:02:14]} 19. O-O-O {[%clk 0:01:34]}  Rxe2 {[%clk 0:02:08]} 20. Qxe2 {[%clk 0:01:35]}  Nxg3 {[%clk 0:02:08]} 21. Qf3 {[%clk 0:01:34]}  Nxh1 {[%clk 0:02:08]} 22. Qxd5+ {[%clk 0:01:33]}  Qxd5 {[%clk 0:02:07]} 23. Bxd5+ {[%clk 0:01:34]}  Kg7 {[%clk 0:02:08]} 24. Rxh1 {[%clk 0:01:29]}  Ne7 {[%clk 0:02:07]} 25. Bf3 {[%clk 0:01:22]}  Be6 {[%clk 0:01:54]} 26. Re1 {[%clk 0:01:14]}  Kf7 {[%clk 0:01:52]} 27. Bxb7 {[%clk 0:01:05]}  Rb8 {[%clk 0:01:43]} 28. Be4 {[%clk 0:01:06]}  f5 {[%clk 0:01:37]} 29. fxg5 {[%clk 0:01:01]}  fxe4 {[%clk 0:01:33]} 30. Nxe4 {[%clk 0:01:02]}  Bxa2 {[%clk 0:01:28]} 31. gxh6 {[%clk 0:00:58]}  Rh8 {[%clk 0:01:09]} 32. Rf1+ {[%clk 0:00:51]}  Ke8 {[%clk 0:01:09]} 33. h7 {[%clk 0:00:22]}  Bd5 {[%clk 0:01:03]} 34. Ng5 {[%clk 0:00:15]}  c4 {[%clk 0:00:46]} 35. dxc4 {[%clk 0:00:14]}  Bxc4 {[%clk 0:00:47]} 36. Rf4 {[%clk 0:00:14]}  Bd3 {[%clk 0:00:46]} 37. Ra4 {[%clk 0:00:13]}  Nc6 {[%clk 0:00:39]} 38. Rf4 {[%clk 0:00:10]}  Ne5 {[%clk 0:00:18]} 39. Rf6 {[%clk 0:00:09]}  Kd7 {[%clk 0:00:14]} 40. Rh6 {[%clk 0:00:07]}  Bf5 {[%clk 0:00:14]} 41. Rf6 {[%clk 0:00:07]}  Bd3 {[%clk 0:00:09]} 42. Rh6 {[%clk 0:00:07]}  Ng4 {[%clk 0:00:09]} 43. Rg6 {[%clk 0:00:05]}  Ne5 {[%clk 0:00:05]} 44. Rg7+ {[%clk 0:00:06]}  Kd6 {[%clk 0:00:05]} 45. Rxa7 {[%clk 0:00:07]}  Nd7 {[%clk 0:00:03]} 46. Nf7+ {[%clk 0:00:05]} 1-0


[Site "https://www.chess.com"]

[Event "Titled Tuesday Blitz April 26 Early 2022"]
[White "Dwilewicz, Katarzyna"]
[Black "Hua, Lefong"]
[WhiteFideId "1148486"]
[BlackFideId "2602253"]
[WhiteElo "1907"]
[BlackElo "2606"]
[Result "0-1"]
[Round "01"]
[TimeControl "180+1"]
[Date "2022.04.26"]
[WhiteClock "0:00:01"]
[BlackClock "0:00:21"]

1. e4 {[%clk 0:02:58]}  c5 {[%clk 0:02:59]} 2. Nf3 {[%clk 0:02:58]}  g6 {[%clk 0:02:59]} 3. c4 {[%clk 0:02:56]}  Bg7 {[%clk 0:02:58]} 4. d4 {[%clk 0:02:57]}  cxd4 {[%clk 0:02:59]} 5. Nxd4 {[%clk 0:02:57]}  Nc6 {[%clk 0:02:59]} 6. Be3 {[%clk 0:02:57]}  Nf6 {[%clk 0:02:59]} 7. Nc3 {[%clk 0:02:58]}  Ng4 {[%clk 0:02:59]} 8. Qxg4 {[%clk 0:02:57]}  Nxd4 {[%clk 0:03:00]} 9. Qd1 {[%clk 0:02:57]}  e5 {[%clk 0:03:00]} 10. Bd3 {[%clk 0:02:13]}  O-O {[%clk 0:03:00]} 11. O-O {[%clk 0:02:11]}  d6 {[%clk 0:03:00]} 12. Rc1 {[%clk 0:02:06]}  Be6 {[%clk 0:02:56]} 13. b3 {[%clk 0:02:04]}  a6 {[%clk 0:02:53]} 14. Ne2 {[%clk 0:02:02]}  b5 {[%clk 0:02:48]} 15. c5 {[%clk 0:01:59]}  dxc5 {[%clk 0:02:41]} 16. Rxc5 {[%clk 0:01:58]}  Qd6 {[%clk 0:02:40]} 17. Rc1 {[%clk 0:01:48]}  Rfd8 {[%clk 0:02:33]} 18. Nxd4 {[%clk 0:01:44]}  exd4 {[%clk 0:02:33]} 19. Bd2 {[%clk 0:01:44]}  Rac8 {[%clk 0:02:09]} 20. f4 {[%clk 0:01:44]}  Qa3 {[%clk 0:01:52]} 21. Rxc8 {[%clk 0:01:39]}  Rxc8 {[%clk 0:01:53]} 22. Qb1 {[%clk 0:01:39]}  Qd6 {[%clk 0:01:36]} 23. Rc1 {[%clk 0:01:29]}  Rd8 {[%clk 0:01:35]} 24. Rc2 {[%clk 0:01:26]}  f5 {[%clk 0:01:33]} 25. e5 {[%clk 0:01:19]}  Qd7 {[%clk 0:01:32]} 26. Qc1 {[%clk 0:01:19]}  g5 {[%clk 0:01:23]} 27. Rc7 {[%clk 0:01:16]}  Qd5 {[%clk 0:01:23]} 28. g3 {[%clk 0:00:47]}  gxf4 {[%clk 0:01:15]} 29. gxf4 {[%clk 0:00:48]}  Qf3 {[%clk 0:01:14]} 30. Qf1 {[%clk 0:00:48]}  Qg4+ {[%clk 0:01:11]} 31. Qg2 {[%clk 0:00:41]}  Qd1+ {[%clk 0:01:08]} 32. Bf1 {[%clk 0:00:41]}  Bf7 {[%clk 0:01:06]} 33. e6 {[%clk 0:00:39]}  Bg6 {[%clk 0:01:06]} 34. Ba5 {[%clk 0:00:19]}  Re8 {[%clk 0:01:02]} 35. e7 {[%clk 0:00:19]}  Qg4 {[%clk 0:00:48]} 36. Qxg4 {[%clk 0:00:18]}  fxg4 {[%clk 0:00:49]} 37. Kf2 {[%clk 0:00:16]}  Bf6 {[%clk 0:00:49]} 38. Bb4 {[%clk 0:00:16]}  Kf7 {[%clk 0:00:49]} 39. Bc5 {[%clk 0:00:15]}  d3 {[%clk 0:00:46]} 40. Ke1 {[%clk 0:00:13]}  Bxe7 {[%clk 0:00:45]} 41. Kd2 {[%clk 0:00:13]}  Ke6 {[%clk 0:00:40]} 42. Bxe7 {[%clk 0:00:09]}  Rxe7 {[%clk 0:00:41]} 43. Rc6+ {[%clk 0:00:09]}  Kf5 {[%clk 0:00:38]} 44. Bxd3+ {[%clk 0:00:08]}  Kxf4 {[%clk 0:00:38]} 45. Bxg6 {[%clk 0:00:09]}  hxg6 {[%clk 0:00:37]} 46. Rxg6 {[%clk 0:00:09]}  Rh7 {[%clk 0:00:37]} 47. Rxa6 {[%clk 0:00:08]}  Rxh2+ {[%clk 0:00:36]} 48. Kd3 {[%clk 0:00:08]}  g3 {[%clk 0:00:35]} 49. Rf6+ {[%clk 0:00:08]}  Kg4 {[%clk 0:00:34]} 50. Rf8 {[%clk 0:00:08]}  Rxa2 {[%clk 0:00:33]} 51. Kd4 {[%clk 0:00:07]}  g2 {[%clk 0:00:33]} 52. Rg8+ {[%clk 0:00:07]}  Kf3 {[%clk 0:00:33]} 53. Kc5 {[%clk 0:00:07]}  Ra1 {[%clk 0:00:31]} 54. Kxb5 {[%clk 0:00:06]}  g1=Q {[%clk 0:00:30]} 55. Rxg1 {[%clk 0:00:06]}  Rxg1 {[%clk 0:00:30]} 56. b4 {[%clk 0:00:06]}  Ke4 {[%clk 0:00:30]} 57. Kc6 {[%clk 0:00:04]}  Ke5 {[%clk 0:00:23]} 58. b5 {[%clk 0:00:04]}  Ke6 {[%clk 0:00:23]} 59. b6 {[%clk 0:00:02]}  Rc1+ {[%clk 0:00:24]} 60. Kb5 {[%clk 0:00:02]}  Kd7 {[%clk 0:00:22]} 61. Ka6 {[%clk 0:00:02]}  Kc8 {[%clk 0:00:22]} 62. Ka7 {[%clk 0:00:01]}  Ra1# {[%clk 0:00:21]} 0-1


[Site "https://www.chess.com"]

[Event "Titled Tuesday Blitz April 26 Early 2022"]
[White "Ezat, Mohamed"]
[Black "Bashirli, Saadat"]
[WhiteFideId "10600906"]
[BlackFideId "13429990"]
[WhiteElo "2386"]
[BlackElo "1173"]
[Result "1-0"]
[Round "01"]
[TimeControl "180+1"]
[Date "2022.04.26"]
[WhiteClock "0:01:47"]
[BlackClock "0:02:01"]

1. d4 {[%clk 0:02:59]}  d5 {[%clk 0:02:59]} 2. c4 {[%clk 0:02:58]}  e6 {[%clk 0:02:59]} 3. Nc3 {[%clk 0:02:57]}  c6 {[%clk 0:03:00]} 4. e4 {[%clk 0:02:56]}  dxe4 {[%clk 0:02:59]} 5. Nxe4 {[%clk 0:02:56]}  Nf6 {[%clk 0:02:58]} 6. Nxf6+ {[%clk 0:02:54]}  Qxf6 {[%clk 0:02:58]} 7. Nf3 {[%clk 0:02:54]}  Bb4+ {[%clk 0:02:55]} 8. Bd2 {[%clk 0:02:55]}  Bxd2+ {[%clk 0:02:55]} 9. Qxd2 {[%clk 0:02:55]}  O-O {[%clk 0:02:54]} 10. Bd3 {[%clk 0:02:55]}  Nd7 {[%clk 0:02:50]} 11. O-O-O {[%clk 0:02:46]}  e5 {[%clk 0:02:48]} 12. Ng5 {[%clk 0:02:44]}  h6 {[%clk 0:02:43]} 13. Nh7 {[%clk 0:02:43]}  Qf4 {[%clk 0:02:39]} 14. Qxf4 {[%clk 0:02:39]}  exf4 {[%clk 0:02:40]} 15. Nxf8 {[%clk 0:02:40]}  Kxf8 {[%clk 0:02:41]} 16. Rhe1 {[%clk 0:02:39]}  Nf6 {[%clk 0:02:40]} 17. f3 {[%clk 0:02:38]}  Be6 {[%clk 0:02:40]} 18. b3 {[%clk 0:02:38]}  Rd8 {[%clk 0:02:37]} 19. Bc2 {[%clk 0:02:39]}  g5 {[%clk 0:02:32]} 20. Kb2 {[%clk 0:02:39]}  g4 {[%clk 0:02:31]} 21. Kc3 {[%clk 0:02:30]}  h5 {[%clk 0:02:29]} 22. Re5 {[%clk 0:02:29]}  Kg7 {[%clk 0:02:24]} 23. Bf5 {[%clk 0:02:22]}  Nd7 {[%clk 0:02:17]} 24. Ra5 {[%clk 0:02:07]}  b6 {[%clk 0:02:13]} 25. Bxe6 {[%clk 0:02:05]}  bxa5 {[%clk 0:02:12]} 26. Bxd7 {[%clk 0:02:05]}  Rxd7 {[%clk 0:02:12]} 27. d5 {[%clk 0:02:05]}  cxd5 {[%clk 0:02:11]} 28. Rxd5 {[%clk 0:02:02]}  Rxd5 {[%clk 0:02:10]} 29. cxd5 {[%clk 0:02:02]}  Kf6 {[%clk 0:02:08]} 30. Kd4 {[%clk 0:02:02]}  Ke7 {[%clk 0:02:08]} 31. Ke5 {[%clk 0:02:00]}  h4 {[%clk 0:02:04]} 32. h3 {[%clk 0:01:52]}  gxf3 {[%clk 0:01:51]} 33. gxf3 {[%clk 0:01:51]}  f6+ {[%clk 0:01:51]} 34. Kxf4 {[%clk 0:01:51]}  Kd6 {[%clk 0:01:51]} 35. Kf5 {[%clk 0:01:44]}  Kxd5 {[%clk 0:01:52]} 36. Kxf6 {[%clk 0:01:44]}  Kd4 {[%clk 0:01:51]} 37. Kg5 {[%clk 0:01:44]}  Kc3 {[%clk 0:01:51]} 38. f4 {[%clk 0:01:44]}  Kb2 {[%clk 0:01:52]} 39. f5 {[%clk 0:01:45]}  Kxa2 {[%clk 0:01:53]} 40. f6 {[%clk 0:01:45]}  Kxb3 {[%clk 0:01:53]} 41. f7 {[%clk 0:01:46]}  a4 {[%clk 0:01:54]} 42. f8=Q {[%clk 0:01:47]}  a3 {[%clk 0:01:55]} 43. Qf6 {[%clk 0:01:47]}  a2 {[%clk 0:01:56]} 44. Qa1 {[%clk 0:01:47]}  a5 {[%clk 0:01:55]} 45. Kxh4 {[%clk 0:01:48]}  a4 {[%clk 0:01:56]} 46. Kg4 {[%clk 0:01:48]}  a3 {[%clk 0:01:57]} 47. h4 {[%clk 0:01:46]}  Ka4 {[%clk 0:01:58]} 48. Qxa2 {[%clk 0:01:46]}  Kb4 {[%clk 0:01:59]} 49. Kf4 {[%clk 0:01:46]}  Ka4 {[%clk 0:02:00]} 50. Ke5 {[%clk 0:01:46]}  Kb4 {[%clk 0:02:01]} 51. Kd4 {[%clk 0:01:46]}  Ka4 {[%clk 0:02:01]} 52. Kc5 {[%clk 0:01:47]}  Ka5 {[%clk 0:02:01]} 53. Qxa3# {[%clk 0:01:47]} 1-0


[Site "https://www.chess.com"]

[Event "Titled Tuesday Blitz April 26 Early 2022"]
[White "Fernandez Siles, Luis"]
[Black "Taichman, Ori"]
[WhiteFideId "2209420"]
[BlackFideId "2804069"]
[WhiteElo "2212"]
[BlackElo "2227"]
[Result "1/2-1/2"]
[Round "01"]
[TimeControl "180+1"]
[Date "2022.04.26"]
[WhiteClock "0:00:21"]
[BlackClock "0:00:14"]

1. d4 {[%clk 0:02:57]}  Nf6 {[%clk 0:03:00]} 2. c4 {[%clk 0:02:57]}  g6 {[%clk 0:03:00]} 3. Nc3 {[%clk 0:02:57]}  Bg7 {[%clk 0:03:00]} 4. e4 {[%clk 0:02:57]}  O-O {[%clk 0:03:01]} 5. Nf3 {[%clk 0:02:57]}  d6 {[%clk 0:03:01]} 6. Be2 {[%clk 0:02:58]}  e5 {[%clk 0:03:01]} 7. O-O {[%clk 0:02:58]}  Nc6 {[%clk 0:03:01]} 8. d5 {[%clk 0:02:58]}  Ne7 {[%clk 0:03:02]} 9. b4 {[%clk 0:02:59]}  Ne8 {[%clk 0:03:02]} 10. Ba3 {[%clk 0:02:47]}  f5 {[%clk 0:03:01]} 11. c5 {[%clk 0:02:46]}  Nf6 {[%clk 0:02:58]} 12. Ng5 {[%clk 0:02:43]}  h6 {[%clk 0:02:56]} 13. cxd6 {[%clk 0:02:40]}  cxd6 {[%clk 0:02:54]} 14. Ne6 {[%clk 0:02:40]}  Bxe6 {[%clk 0:02:54]} 15. dxe6 {[%clk 0:02:41]}  fxe4 {[%clk 0:02:55]} 16. b5 {[%clk 0:02:32]}  Rc8 {[%clk 0:02:05]} 17. Rc1 {[%clk 0:02:09]}  d5 {[%clk 0:02:04]} 18. Bxe7 {[%clk 0:02:04]}  Qxe7 {[%clk 0:02:04]} 19. Nxd5 {[%clk 0:02:04]}  Nxd5 {[%clk 0:02:04]} 20. Qxd5 {[%clk 0:02:03]}  Rfd8 {[%clk 0:01:45]} 21. Qxe4 {[%clk 0:01:57]}  Kh7 {[%clk 0:01:35]} 22. Rxc8 {[%clk 0:01:44]}  Rxc8 {[%clk 0:01:35]} 23. Bd3 {[%clk 0:01:45]}  Qxe6 {[%clk 0:01:34]} 24. Qxb7 {[%clk 0:01:41]}  Rd8 {[%clk 0:01:30]} 25. Bb1 {[%clk 0:01:29]}  Rd7 {[%clk 0:01:24]} 26. Qc6 {[%clk 0:01:27]}  Rd6 {[%clk 0:01:23]} 27. Qc2 {[%clk 0:01:25]}  Qd5 {[%clk 0:01:10]} 28. a4 {[%clk 0:01:21]}  Bf8 {[%clk 0:01:09]} 29. h4 {[%clk 0:01:20]}  h5 {[%clk 0:01:09]} 30. Qe2 {[%clk 0:01:14]}  Kg7 {[%clk 0:01:07]} 31. Rc1 {[%clk 0:01:06]}  Be7 {[%clk 0:01:05]} 32. g3 {[%clk 0:01:04]}  Qd4 {[%clk 0:00:50]} 33. Kg2 {[%clk 0:01:01]}  Rf6 {[%clk 0:00:43]} 34. a5 {[%clk 0:00:55]}  Bc5 {[%clk 0:00:42]} 35. Rc2 {[%clk 0:00:48]}  e4 {[%clk 0:00:40]} 36. Ba2 {[%clk 0:00:42]}  e3 {[%clk 0:00:40]} 37. Qxe3 {[%clk 0:00:41]}  Rxf2+ {[%clk 0:00:35]} 38. Qxf2 {[%clk 0:00:39]}  Qe4+ {[%clk 0:00:35]} 39. Kh2 {[%clk 0:00:36]}  Bxf2 {[%clk 0:00:35]} 40. Rxf2 {[%clk 0:00:37]}  Qb4 {[%clk 0:00:34]} 41. b6 {[%clk 0:00:31]}  axb6 {[%clk 0:00:34]} 42. axb6 {[%clk 0:00:30]}  Qxb6 {[%clk 0:00:34]} 43. Rg2 {[%clk 0:00:28]}  Qd6 {[%clk 0:00:31]} 44. Bc4 {[%clk 0:00:27]}  Kf6 {[%clk 0:00:29]} 45. Rf2+ {[%clk 0:00:26]}  Kg7 {[%clk 0:00:29]} 46. Bf1 {[%clk 0:00:27]}  Qd4 {[%clk 0:00:28]} 47. Rf4 {[%clk 0:00:26]}  Qd2+ {[%clk 0:00:28]} 48. Bg2 {[%clk 0:00:27]}  Kh6 {[%clk 0:00:27]} 49. Kh3 {[%clk 0:00:24]}  Qd7+ {[%clk 0:00:25]} 50. Kh2 {[%clk 0:00:24]}  Qd6 {[%clk 0:00:25]} 51. Bf3 {[%clk 0:00:24]}  g5 {[%clk 0:00:24]} 52. hxg5+ {[%clk 0:00:23]}  Kxg5 {[%clk 0:00:25]} 53. Kh3 {[%clk 0:00:22]}  Qa6 {[%clk 0:00:21]} 54. Rh4 {[%clk 0:00:19]}  Qe6+ {[%clk 0:00:20]} 55. Kh2 {[%clk 0:00:19]}  Qa2+ {[%clk 0:00:20]} 56. Bg2 {[%clk 0:00:18]}  Qf2 {[%clk 0:00:19]} 57. Rh3 {[%clk 0:00:18]}  Qe2 {[%clk 0:00:16]} 58. Rh4 {[%clk 0:00:19]}  Kf5 {[%clk 0:00:15]} 59. Rf4+ {[%clk 0:00:20]}  Kg5 {[%clk 0:00:15]} 60. Rh4 {[%clk 0:00:20]}  Kg6 {[%clk 0:00:14]} 61. Rf4 {[%clk 0:00:20]}  Kg5 {[%clk 0:00:14]} 62. Rh4 {[%clk 0:00:21]} 1/2-1/2


[Site "https://www.chess.com"]

[Event "Titled Tuesday Blitz April 26 Early 2022"]
[White "Gokerkan, Cem Kaan"]
[Black "Begunov, Konstantin"]
[WhiteFideId "6336760"]
[BlackFideId "4118510"]
[WhiteElo "2382"]
[BlackElo "2262"]
[Result "1-0"]
[Round "01"]
[TimeControl "180+1"]
[Date "2022.04.26"]
[WhiteClock "0:00:34"]
[BlackClock "0:00:31"]

1. e4 {[%clk 0:03:00]}  c5 {[%clk 0:02:59]} 2. Nf3 {[%clk 0:03:00]}  d6 {[%clk 0:02:58]} 3. d4 {[%clk 0:02:58]}  cxd4 {[%clk 0:02:59]} 4. Nxd4 {[%clk 0:02:59]}  Nf6 {[%clk 0:02:58]} 5. Nc3 {[%clk 0:02:59]}  a6 {[%clk 0:02:57]} 6. Bg5 {[%clk 0:02:59]}  e6 {[%clk 0:02:57]} 7. f4 {[%clk 0:02:59]}  Qb6 {[%clk 0:02:58]} 8. Qd2 {[%clk 0:02:56]}  Nc6 {[%clk 0:02:57]} 9. Bxf6 {[%clk 0:02:54]}  gxf6 {[%clk 0:02:56]} 10. Nb3 {[%clk 0:02:54]}  Be7 {[%clk 0:02:51]} 11. O-O-O {[%clk 0:02:53]}  Qc7 {[%clk 0:02:50]} 12. Be2 {[%clk 0:02:47]}  h5 {[%clk 0:02:50]} 13. Kb1 {[%clk 0:02:46]}  b5 {[%clk 0:02:50]} 14. Rhf1 {[%clk 0:02:31]}  Bb7 {[%clk 0:02:49]} 15. Rf3 {[%clk 0:02:29]}  O-O-O {[%clk 0:02:45]} 16. Rh3 {[%clk 0:02:29]}  b4 {[%clk 0:02:25]} 17. Na4 {[%clk 0:02:25]}  d5 {[%clk 0:02:18]} 18. exd5 {[%clk 0:02:07]}  Rxd5 {[%clk 0:02:17]} 19. Qe3 {[%clk 0:01:48]}  Rxd1+ {[%clk 0:01:57]} 20. Bxd1 {[%clk 0:01:49]}  h4 {[%clk 0:01:57]} 21. c3 {[%clk 0:01:33]}  f5 {[%clk 0:01:45]} 22. Bf3 {[%clk 0:01:31]}  Bd6 {[%clk 0:01:26]} 23. g3 {[%clk 0:01:25]}  Kb8 {[%clk 0:01:18]} 24. Nac5 {[%clk 0:01:24]}  bxc3 {[%clk 0:00:47]} 25. Qxc3 {[%clk 0:01:22]}  Rc8 {[%clk 0:00:47]} 26. Rxh4 {[%clk 0:01:04]}  Ka7 {[%clk 0:00:47]} 27. Rh7 {[%clk 0:00:52]}  Bxc5 {[%clk 0:00:38]} 28. Nxc5 {[%clk 0:00:51]}  Nd8 {[%clk 0:00:37]} 29. Nxb7 {[%clk 0:00:48]}  Nxb7 {[%clk 0:00:34]} 30. Qxc7 {[%clk 0:00:46]}  Rxc7 {[%clk 0:00:34]} 31. Bh5 {[%clk 0:00:35]}  f6 {[%clk 0:00:31]} 32. Rxc7 {[%clk 0:00:34]} 1-0


[Site "https://www.chess.com"]

[Event "Titled Tuesday Blitz April 26 Early 2022"]
[White "Guliev, Logman"]
[Black "Jumabayev, Rinat"]
[WhiteFideId "13400061"]
[BlackFideId "13702661"]
[WhiteElo "2128"]
[BlackElo "2561"]
[Result "0-1"]
[Round "01"]
[TimeControl "180+1"]
[Date "2022.04.26"]
[WhiteClock "0:00:01"]
[BlackClock "0:00:20"]

1. e4 {[%clk 0:02:59]}  e5 {[%clk 0:02:58]} 2. Nf3 {[%clk 0:02:59]}  Nc6 {[%clk 0:02:59]} 3. Bb5 {[%clk 0:02:59]}  a6 {[%clk 0:02:59]} 4. Ba4 {[%clk 0:03:00]}  Nf6 {[%clk 0:02:58]} 5. O-O {[%clk 0:03:00]}  Be7 {[%clk 0:02:57]} 6. Re1 {[%clk 0:03:00]}  b5 {[%clk 0:02:57]} 7. Bb3 {[%clk 0:03:00]}  d6 {[%clk 0:02:57]} 8. c3 {[%clk 0:03:00]}  O-O {[%clk 0:02:57]} 9. h3 {[%clk 0:03:01]}  Nb8 {[%clk 0:02:56]} 10. d4 {[%clk 0:03:00]}  Nbd7 {[%clk 0:02:57]} 11. Nbd2 {[%clk 0:03:00]}  Bb7 {[%clk 0:02:54]} 12. Bc2 {[%clk 0:02:58]}  Re8 {[%clk 0:02:54]} 13. Nf1 {[%clk 0:02:58]}  Bf8 {[%clk 0:02:54]} 14. Ng3 {[%clk 0:02:59]}  g6 {[%clk 0:02:55]} 15. a4 {[%clk 0:02:57]}  Nb6 {[%clk 0:02:55]} 16. a5 {[%clk 0:02:56]}  Nbd7 {[%clk 0:02:54]} 17. b4 {[%clk 0:02:52]}  exd4 {[%clk 0:02:54]} 18. cxd4 {[%clk 0:02:51]}  c5 {[%clk 0:02:55]} 19. e5 {[%clk 0:02:43]}  Nd5 {[%clk 0:02:54]} 20. bxc5 {[%clk 0:02:35]}  dxe5 {[%clk 0:02:48]} 21. dxe5 {[%clk 0:02:17]}  Nxc5 {[%clk 0:02:45]} 22. Bg5 {[%clk 0:02:09]}  Qc7 {[%clk 0:02:29]} 23. Rc1 {[%clk 0:02:01]}  Qxa5 {[%clk 0:02:28]} 24. Ne4 {[%clk 0:01:52]}  Nxe4 {[%clk 0:02:17]} 25. Bxe4 {[%clk 0:01:52]}  Nc3 {[%clk 0:02:16]} 26. Qd2 {[%clk 0:01:44]}  Bxe4 {[%clk 0:02:16]} 27. Rxe4 {[%clk 0:01:40]}  b4 {[%clk 0:02:17]} 28. Rh4 {[%clk 0:01:33]}  Qd5 {[%clk 0:02:06]} 29. Rd4 {[%clk 0:01:17]}  Qb5 {[%clk 0:01:51]} 30. Re1 {[%clk 0:01:07]}  a5 {[%clk 0:01:35]} 31. Bf6 {[%clk 0:01:07]}  a4 {[%clk 0:01:21]} 32. Rh4 {[%clk 0:01:04]}  Ra6 {[%clk 0:01:10]} 33. Qg5 {[%clk 0:00:18]}  Rxf6 {[%clk 0:01:08]} 34. Qxf6 {[%clk 0:00:08]}  Be7 {[%clk 0:00:49]} 35. Qf4 {[%clk 0:00:09]}  Ne2+ {[%clk 0:00:48]} 36. Rxe2 {[%clk 0:00:08]}  Qxe2 {[%clk 0:00:48]} 37. Rxh7 {[%clk 0:00:08]}  Kxh7 {[%clk 0:00:26]} 38. Qxf7+ {[%clk 0:00:08]}  Kh6 {[%clk 0:00:27]} 39. Qxe8 {[%clk 0:00:08]}  Qd1+ {[%clk 0:00:27]} 40. Kh2 {[%clk 0:00:08]}  Qd8 {[%clk 0:00:27]} 41. Qxa4 {[%clk 0:00:06]}  Kg7 {[%clk 0:00:26]} 42. Qb3 {[%clk 0:00:05]}  Bc5 {[%clk 0:00:22]} 43. Qc2 {[%clk 0:00:01]}  Qd5 {[%clk 0:00:20]} 0-1


[Site "https://www.chess.com"]